fUST/lending_fUST_20250121
["ID","MTS","AMOUNT","RATE_DAILY","PERIOD"]
[349718710,1737393041029,-500.0,0.00021917,3]
[349718712,1737393041040,-232.51429619,0.00021917,3]
[349718715,1737393041051,-500.0,0.00021917,3]
[349718717,1737393041061,-500.0,0.00021917,3]
[349718719,1737393041072,-500.0,0.00021917,3]
[349718721,1737393041083,-500.0,0.00021917,3]
[349718723,1737393041094,-500.0,0.00021917,3]
[349718726,1737393041104,-500.0,0.00021917,3]
[349718728,1737393041115,-508.55678685,0.00021917,3]
[349718730,1737393041126,-500.0,0.00021917,3]
[349718732,1737393041136,-500.0,0.00021917,3]
[349718734,1737393041147,-500.0,0.00021917,3]
[349718736,1737393041157,-500.0,0.00021917,3]
[349718738,1737393041168,-500.0,0.00021917,3]
[349718741,1737393041179,-500.0,0.00021917,3]
[349718743,1737393041190,-500.0,0.00021917,3]
[349718745,1737393041200,-500.0,0.00021917,3]
[349718747,1737393041217,-500.0,0.00021917,3]
[349718749,1737393041229,-500.0,0.00021917,3]
[349718752,1737393041240,-500.0,0.00021917,3]
[349718754,1737393041251,-500.0,0.00021917,3]
[349718756,1737393041262,-500.0,0.00021917,3]
[349718758,1737393041271,-500.0,0.00021917,3]
[349718760,1737393041282,-500.0,0.00021917,3]
[349718762,1737393041291,-500.0,0.00021917,3]
[349718764,1737393041300,-500.0,0.00021917,3]
[349718766,1737393041310,-506.19069059,0.00021917,3]
[349718781,1737393041457,-500.0,0.00021917,3]
[349718784,1737393041482,-500.0,0.00021917,3]
[349718786,1737393041492,-500.0,0.00021917,3]
[349718788,1737393041502,-680.5,0.00021917,3]
[349718790,1737393041514,-500.0,0.00021917,3]
[349718792,1737393041523,-500.0,0.00021917,3]
[349718794,1737393041535,-500.0,0.00021917,3]
[349718796,1737393041544,-500.0,0.00021917,3]
[349718798,1737393041554,-326.63068507,0.00021917,3]
[349718800,1737393041564,-500.0,0.00021917,3]
[349718802,1737393041573,-500.0,0.00021917,3]
[349718804,1737393041583,-500.0,0.00021917,3]
[349718806,1737393041592,-500.0,0.00021917,3]
[349718808,1737393041602,-551.992109,0.00021917,3]
[349718810,1737393041611,-500.0,0.00021917,3]
[349718812,1737393041621,-500.0,0.00021917,3]
[349718815,1737393041634,-500.0,0.00021917,3]
[349718817,1737393041644,-500.0,0.00021917,3]
[349718819,1737393041654,-500.0,0.00021917,3]
[349718821,1737393041663,-500.0,0.00021917,3]
[349718823,1737393041676,-500.0,0.00021917,3]
[349718825,1737393041686,-500.0,0.00021917,3]
[349718827,1737393041695,-500.0,0.00021917,3]
[349718829,1737393041704,-502.49058262,0.00021917,3]
[349718831,1737393041720,-500.0,0.00021917,3]
[349718833,1737393041730,-500.0,0.00021917,3]
[349718835,1737393041741,-500.0,0.00021917,3]
[349718837,1737393041756,-500.0,0.00021917,3]
[349718839,1737393041765,-500.0,0.00021917,3]
[349718841,1737393041774,-500.0,0.00021917,3]
[349718843,1737393041784,-500.0,0.00021917,3]
[349718845,1737393041795,-500.0,0.00021917,3]
[349718847,1737393041804,-500.0,0.00021917,3]
[349718848,1737393041814,-500.0,0.00021917,3]
[349718850,1737393041824,-500.0,0.00021917,3]
[349718852,1737393041835,-1701.79,0.00021917,3]
[349718854,1737393041845,-1701.79,0.00021917,3]
[349718856,1737393041855,-1701.79,0.00021917,3]
[349718858,1737393041864,-1701.79,0.00021917,3]
[349718860,1737393041874,-1701.79,0.00021917,3]
[349718862,1737393041884,-500.0,0.00021917,3]
[349718864,1737393041894,-1701.79,0.00021917,3]
[349718866,1737393041905,-1701.79,0.00021917,3]
[349718868,1737393041915,-1701.79,0.00021917,3]
[349718870,1737393041925,-500.0,0.00021917,3]
[349718872,1737393041935,-1701.79,0.00021917,3]
[349718874,1737393041946,-1701.79,0.00021917,3]
[349718876,1737393041956,-1701.79,0.00021917,3]
[349718878,1737393041972,-500.0,0.00021917,3]
[349718880,1737393041981,-561.38,0.00021917,3]
[349718882,1737393041991,-822.28,0.00021919,3]
[349718884,1737393042001,-649.86,0.00021919,3]
[349718886,1737393042012,-3000.0,0.0002192,2]
[349718888,1737393042022,-290.9200179,0.0002193,2]
[349719044,1737393043801,-2709.0799821,0.0002193,2]
[349719046,1737393043811,-3000.0,0.0002194,2]
[349719048,1737393043821,-500.0,0.00021948,2]
[349719049,1737393043832,-500.0,0.00021948,2]
[349719051,1737393043842,-315.0,0.00021948,2]
[349719053,1737393043852,-500.0,0.00021948,2]
[349719055,1737393043861,-500.0,0.00021948,2]
[349719056,1737393043870,-500.0,0.00021948,2]
[349719058,1737393043880,-500.0,0.00021948,2]
[349719060,1737393043889,-500.0,0.00021948,2]
[349719062,1737393043899,-500.0,0.00021948,2]
[349719064,1737393043908,-500.0,0.00021948,2]
[349719065,1737393043918,-500.0,0.00021948,2]
[349719066,1737393043929,-500.0,0.00021948,2]
[349719067,1737393043939,-500.0,0.00021948,2]
[349719068,1737393043949,-460.44489017,0.00021948,2]
[349719070,1737393043959,-500.0,0.00021948,2]
[349719072,1737393043973,-500.0,0.00021948,2]
[349719074,1737393043983,-165.37468559,0.00021948,2]
[349719076,1737393043993,-500.0,0.00021948,2]
[349719077,1737393044003,-500.0,0.00021948,2]
[349719079,1737393044012,-500.0,0.00021948,2]
[349719081,1737393044022,-500.0,0.00021948,2]
[349719083,1737393044032,-500.0,0.00021948,2]
[349719085,1737393044041,-500.0,0.00021948,2]
[349719087,1737393044051,-500.0,0.00021948,2]
[349719089,1737393044061,-500.0,0.00021948,2]
[349719090,1737393044070,-500.0,0.00021948,2]
[349719091,1737393044080,-500.0,0.00021948,2]
[349719092,1737393044089,-500.0,0.00021948,2]
[349719093,1737393044099,-500.0,0.00021948,2]
[349719095,1737393044108,-500.0,0.00021948,2]
[349719097,1737393044117,-432.05180164,0.00021948,2]
[349719099,1737393044129,-67.94819836,0.00021948,2]
[349719101,1737393044139,-500.0,0.00021948,2]
[349719103,1737393044148,-500.0,0.00021948,2]
[349719104,1737393044157,-500.0,0.00021948,2]
[349719105,1737393044167,-192.89693223,0.00021948,2]
[349719106,1737393044176,-500.0,0.00021948,2]
[349719108,1737393044187,-250.0,0.00021948,2]
[349719109,1737393044196,-500.0,0.00021948,2]
[349719111,1737393044206,-550.22646253,0.00021948,2]
[349719112,1737393044220,-500.0,0.00021948,2]
[349719114,1737393044231,-500.0,0.00021948,2]
[349719116,1737393044240,-500.0,0.00021948,2]
[349719118,1737393044250,-360.0,0.00021948,2]
[349719120,1737393044261,-500.0,0.00021948,2]
[349719122,1737393044271,-500.0,0.00021948,2]
[349719124,1737393044281,-500.0,0.00021948,2]
[349719126,1737393044290,-500.0,0.00021948,2]
[349719127,1737393044300,-500.0,0.00021948,2]
[349719128,1737393044313,-500.0,0.00021948,2]
[349719129,1737393044323,-575.0,0.00021948,2]
[349719130,1737393044333,-500.0,0.00021948,2]
[349719131,1737393044343,-500.0,0.00021948,2]
[349719132,1737393044353,-500.0,0.00021948,2]
[349719134,1737393044363,-500.0,0.00021948,2]
[349719144,1737393044468,-500.0,0.00021948,2]
[349719146,1737393044480,-500.0,0.00021948,2]
[349719147,1737393044489,-500.0,0.00021948,2]
[349719148,1737393044498,-500.0,0.00021948,2]
[349719150,1737393044509,-500.0,0.00021948,2]
[349719152,1737393044518,-500.0,0.00021948,2]
[349719154,1737393044529,-527.20813802,0.00021948,2]
[349719155,1737393044539,-3000.0,0.0002195,2]
[349719156,1737393044548,-1701.79,0.00021958,3]
[349719157,1737393044558,-1701.79,0.00021958,3]
[349719158,1737393044568,-3000.0,0.0002196,2]
[349719159,1737393044577,-3000.0,0.0002197,2]
[349719160,1737393044587,-822.28,0.00021979,3]
[349719161,1737393044596,-649.86,0.00021979,3]
[349719162,1737393044605,-1844.06453641,0.0002198,2]
[349719163,1737393044618,-1155.93546359,0.0002198,2]
[349719164,1737393044628,-1701.79,0.00021989,3]
[349719165,1737393044637,-3000.0,0.0002199,2]
[349719166,1737393044647,-822.28,0.00021998,3]
[349719168,1737393044657,-649.86,0.00021998,3]
[349719170,1737393044668,-3000.0,0.00022,2]
[349719172,1737393044678,-1000.0,0.00022,22]
[349719174,1737393044688,-822.28,0.00022003,3]
[349719176,1737393044698,-649.86,0.00022003,3]
[349719178,1737393044708,-1915.93456567,0.00022003,3]
[349719179,1737393044723,-3000.0,0.0002201,2]
[349719180,1737393044733,-3000.0,0.0002202,2]
[349719181,1737393044745,-1701.79,0.00022029,3]
[349719182,1737393044755,-3000.0,0.0002203,2]
[349719183,1737393044765,-3000.0,0.0002204,2]
[349719184,1737393044779,-3000.0,0.0002205,2]
[349719185,1737393044788,-822.28,0.00022052,3]
[349719186,1737393044799,-649.86,0.00022052,3]
[349719187,1737393044808,-822.28,0.00022053,3]
[349719188,1737393044817,-822.28,0.00022053,3]
[349719190,1737393044826,-649.86,0.00022053,3]
[349719192,1737393044835,-649.86,0.00022053,3]
[349719193,1737393044845,-1701.79,0.00022053,3]
[349719194,1737393044857,-1701.79,0.00022053,3]
[349719195,1737393044867,-1701.79,0.00022053,3]
[349719196,1737393044879,-1701.79,0.00022053,3]
[349719198,1737393044889,-500.0,0.00022054,3]
[349719200,1737393044899,-500.0,0.00022054,3]
[349719202,1737393044909,-500.0,0.00022054,3]
[349719203,1737393044918,-500.0,0.00022054,3]
[349719204,1737393044928,-500.0,0.00022054,3]
[349719205,1737393044937,-500.0,0.00022054,3]
[349719206,1737393044946,-574.88576575,0.00022054,3]
[349719207,1737393044956,-500.0,0.00022054,3]
[349719208,1737393044969,-500.0,0.00022054,3]
[349719209,1737393044978,-500.0,0.00022054,3]
[349719210,1737393044988,-500.0,0.00022054,3]
[349719211,1737393044997,-500.0,0.00022054,3]
[349719212,1737393045007,-500.0,0.00022054,3]
[349719214,1737393045016,-500.0,0.00022054,3]
[349719215,1737393045026,-500.0,0.00022054,3]
[349719217,1737393045035,-500.0,0.00022054,3]
[349719219,1737393045044,-500.0,0.00022054,3]
[349719221,1737393045054,-500.0,0.00022054,3]
[349719223,1737393045063,-500.0,0.00022054,3]
[349719225,1737393045073,-500.0,0.00022054,3]
[349719226,1737393045083,-500.0,0.00022054,3]
[349719228,1737393045092,-500.0,0.00022054,3]
[349719230,1737393045101,-500.0,0.00022054,3]
[349719231,1737393045110,-500.0,0.00022054,3]
[349719232,1737393045120,-500.0,0.00022054,3]
[349719233,1737393045129,-500.0,0.00022054,3]
[349719234,1737393045139,-500.0,0.00022054,3]
[349719235,1737393045149,-500.0,0.00022054,3]
[349719236,1737393045158,-500.0,0.00022054,3]
[349719237,1737393045167,-500.0,0.00022054,3]
[349719238,1737393045177,-500.0,0.00022054,3]
[349719239,1737393045186,-500.0,0.00022054,3]
[349719241,1737393045195,-500.0,0.00022054,3]
[349719242,1737393045205,-500.0,0.00022054,3]
[349719244,1737393045216,-500.0,0.00022054,3]
[349719246,1737393045226,-500.0,0.00022054,3]
[349719248,1737393045235,-500.0,0.00022054,3]
[349719250,1737393045245,-500.0,0.00022054,3]
[349719251,1737393045255,-500.0,0.00022054,3]
[349719253,1737393045264,-500.0,0.00022054,3]
[349719255,1737393045275,-500.0,0.00022054,3]
[349719257,1737393045284,-500.0,0.00022054,3]
[349719258,1737393045295,-500.0,0.00022054,3]
[349719259,1737393045304,-281.6307012,0.00022054,3]
[349719260,1737393045313,-500.0,0.00022054,3]
[349719261,1737393045323,-500.0,0.00022054,3]
[349719262,1737393045334,-321.46986938,0.00022054,3]
[349719263,1737393045344,-500.0,0.00022054,3]
[349719264,1737393045353,-500.0,0.00022054,3]
[349719265,1737393045363,-500.0,0.00022054,3]
[349719266,1737393045372,-500.0,0.00022054,3]
[349719267,1737393045382,-500.0,0.00022054,3]
[349719268,1737393045391,-500.0,0.00022054,3]
[349719269,1737393045401,-500.0,0.00022054,3]
[349719270,1737393045410,-500.0,0.00022054,3]
[349719271,1737393045420,-500.0,0.00022054,3]
[349719272,1737393045429,-500.0,0.00022054,3]
[349719273,1737393045438,-500.0,0.00022054,3]
[349719274,1737393045448,-500.0,0.00022054,3]
[349719275,1737393045457,-491.24341778,0.00022054,3]
[349719276,1737393045469,-500.0,0.00022054,3]
[349719277,1737393045479,-500.0,0.00022054,2]
[349719278,1737393045489,-500.0,0.00022054,3]
[349719279,1737393045498,-500.0,0.00022054,3]
[349719280,1737393045507,-1254.55,0.00022054,3]
[349719281,1737393045517,-500.0,0.00022054,3]
[349719282,1737393045527,-500.0,0.00022054,3]
[349719283,1737393045536,-500.0,0.00022054,3]
[349719284,1737393045546,-500.0,0.00022054,3]
[349719285,1737393045555,-500.0,0.00022054,3]
[349719286,1737393045564,-500.0,0.00022054,3]
[349719287,1737393045574,-500.0,0.00022054,3]
[349719288,1737393045584,-2949.76,0.00022054,3]
[349719289,1737393045593,-500.0,0.00022054,3]
[349719290,1737393045603,-500.0,0.00022054,3]
[349719291,1737393045612,-500.0,0.00022054,3]
[349719292,1737393045621,-500.0,0.00022054,3]
[349719293,1737393045630,-657.92,0.00022054,3]
[349719294,1737393045640,-500.0,0.00022054,3]
[349719295,1737393045649,-500.0,0.00022054,3]
[349719296,1737393045659,-616.94,0.00022054,3]
[349719297,1737393045669,-500.0,0.00022054,3]
[349719298,1737393045680,-500.0,0.00022054,3]
[349719299,1737393045690,-500.0,0.00022054,3]
[349719300,1737393045700,-500.0,0.00022054,3]
[349719301,1737393045710,-500.0,0.00022054,3]
[349719302,1737393045724,-500.0,0.00022054,3]
[349719303,1737393045733,-500.0,0.00022054,3]
[349719304,1737393045744,-500.0,0.00022054,3]
[349719305,1737393045758,-500.0,0.00022054,3]
[349719306,1737393045768,-500.0,0.00022054,3]
[349719307,1737393045777,-500.0,0.00022054,3]
[349719308,1737393045787,-500.0,0.00022054,3]
[349719309,1737393045799,-500.0,0.00022054,3]
[349719310,1737393045809,-500.0,0.00022054,3]
[349719311,1737393045818,-500.0,0.00022054,3]
[349719312,1737393045828,-500.0,0.00022054,3]
[349719313,1737393045838,-500.0,0.00022054,3]
[349719314,1737393045848,-500.0,0.00022054,3]
[349719315,1737393045858,-621.82,0.00022054,3]
[349719316,1737393045868,-500.0,0.00022054,3]
[349719317,1737393045878,-488.10882255,0.00022054,3]
[349719318,1737393045887,-862.57,0.00022054,3]
[349719319,1737393045896,-500.0,0.00022054,3]
[349719321,1737393045906,-500.0,0.00022054,3]
[349719322,1737393045917,-500.0,0.00022054,3]
[349719323,1737393045929,-500.0,0.00022054,3]
[349719324,1737393045939,-500.0,0.00022054,3]
[349719325,1737393045949,-500.0,0.00022054,3]
[349719327,1737393045959,-500.0,0.00022054,3]
[349719328,1737393045973,-500.0,0.00022054,3]
[349719330,1737393045983,-500.0,0.00022054,3]
[349719332,1737393045993,-500.0,0.00022054,3]
[349719334,1737393046004,-500.0,0.00022054,3]
[349719336,1737393046014,-500.0,0.00022054,3]
[349719338,1737393046025,-500.0,0.00022054,3]
[349719340,1737393046035,-500.0,0.00022054,3]
[349719341,1737393046045,-500.0,0.00022054,3]
[349719342,1737393046054,-680.5,0.00022054,3]
[349719343,1737393046064,-500.0,0.00022054,3]
[349719344,1737393046074,-500.0,0.00022054,3]
[349719345,1737393046083,-500.0,0.00022054,3]
[349719347,1737393046093,-500.0,0.00022054,3]
[349719349,1737393046103,-500.0,0.00022054,3]
[349719351,1737393046112,-500.0,0.00022054,3]
[349719353,1737393046121,-500.0,0.00022054,3]
[349719355,1737393046131,-500.0,0.00022054,3]
[349719357,1737393046140,-500.0,0.00022054,3]
[349719359,1737393046149,-500.0,0.00022054,3]
[349719361,1737393046159,-500.0,0.00022054,3]
[349719363,1737393046169,-500.0,0.00022054,3]
[349719366,1737393046178,-500.0,0.00022054,3]
[349719368,1737393046187,-500.0,0.00022054,3]
[349719371,1737393046197,-500.0,0.00022054,3]
[349719373,1737393046206,-822.28,0.00022059,3]
[349719375,1737393046219,-649.86,0.00022059,3]
[349719377,1737393046228,-5882.141853,0.0002206,2]
[349719379,1737393046237,-1915.93456567,0.00022107,3]
[349719381,1737393046246,-467.73175196,0.00022141,2]
[349719383,1737393046256,-1701.79,0.00022189,3]
[349719385,1737393046265,-1701.79,0.00022189,3]
[349719387,1737393046275,-1701.79,0.00022189,3]
[349719389,1737393046285,-1701.79,0.00022189,3]
[349719392,1737393046294,-1701.93,0.00022189,3]
[349719395,1737393046304,-822.28,0.0002219,3]
[349719398,1737393046313,-649.86,0.0002219,3]
[349719399,1737393046322,-500.0,0.00022191,3]
[349719401,1737393046332,-293.30630946,0.00022191,3]
[349719404,1737393046345,-206.69369054,0.00022191,3]
[349719406,1737393046355,-500.0,0.00022191,3]
[349719408,1737393046364,-500.0,0.00022191,3]
[349719410,1737393046373,-500.0,0.00022191,3]
[349719412,1737393046382,-574.79754329,0.00022191,3]
[349719414,1737393046392,-500.0,0.00022191,3]
[349719415,1737393046402,-500.0,0.00022191,3]
[349719417,1737393046411,-500.0,0.00022191,3]
[349719419,1737393046420,-500.0,0.00022191,3]
[349719421,1737393046429,-500.0,0.00022191,3]
[349719423,1737393046439,-500.0,0.00022191,3]
[349719425,1737393046450,-500.0,0.00022191,3]
[349719427,1737393046459,-500.0,0.00022191,3]
[349719428,1737393046474,-500.0,0.00022191,3]
[349719430,1737393046483,-500.0,0.00022191,3]
[349719432,1737393046494,-500.0,0.00022191,3]
[349719434,1737393046504,-500.0,0.00022191,3]
[349719435,1737393046513,-500.0,0.00022191,3]
[349719437,1737393046523,-500.0,0.00022191,3]
[349719438,1737393046532,-500.0,0.00022191,3]
[349719439,1737393046541,-516.01894718,0.00022191,3]
[349719440,1737393046552,-500.0,0.00022191,3]
[349719441,1737393046561,-500.0,0.00022191,3]
[349719443,1737393046571,-636.08673586,0.00022191,3]
[349719445,1737393046581,-500.0,0.00022191,3]
[349719446,1737393046591,-500.0,0.00022191,3]
[349719447,1737393046600,-341.26761573,0.00022191,3]
[349719448,1737393046609,-500.0,0.00022191,3]
[349719449,1737393046619,-500.0,0.00022191,3]
[349719451,1737393046629,-500.0,0.00022191,3]
[349719452,1737393046638,-500.0,0.00022191,3]
[349719453,1737393046648,-500.0,0.00022191,3]
[349719454,1737393046657,-500.0,0.00022191,3]
[349719455,1737393046667,-500.0,0.00022191,3]
[349719456,1737393046679,-1254.55,0.00022191,3]
[349719457,1737393046689,-500.0,0.00022191,3]
[349719458,1737393046699,-500.0,0.00022191,3]
[349719459,1737393046709,-390.41018191,0.00022191,3]
[349719460,1737393046722,-2949.76,0.00022191,3]
[349719461,1737393046732,-657.92,0.00022191,3]
[349719462,1737393046742,-500.0,0.00022191,3]
[349719463,1737393046755,-636.16,0.00022191,3]
[349719464,1737393046765,-500.0,0.00022191,3]
[349719465,1737393046775,-431.49898908,0.00022191,3]
[349719466,1737393046785,-403.9695881,0.00022191,3]
[349719467,1737393046797,-631.1,0.00022191,3]
[349719468,1737393046807,-500.0,0.00022191,3]
[349719469,1737393046816,-500.0,0.00022191,3]
[349719470,1737393046826,-500.0,0.00022191,3]
[349719471,1737393046837,-621.82,0.00022191,3]
[349719472,1737393046848,-500.0,0.00022191,3]
[349719473,1737393046857,-862.57,0.00022191,3]
[349719474,1737393046867,-301.85053774,0.00022191,3]
[349719475,1737393046877,-500.0,0.00022191,3]
[349719476,1737393046887,-268.81630114,0.00022191,3]
[349719477,1737393046900,-14.02687876,0.00022191,3]
[349719479,1737393046911,-500.0,0.00022191,3]
[349719480,1737393046921,-500.0,0.00022191,3]
[349719481,1737393046931,-500.0,0.00022191,3]
[349719482,1737393046941,-500.0,0.00022191,3]
[349719483,1737393046951,-500.0,0.00022191,3]
[349719485,1737393046961,-500.0,0.00022191,3]
[349719487,1737393046979,-500.0,0.00022191,3]
[349719489,1737393046988,-680.5,0.00022191,3]
[349719490,1737393046998,-500.0,0.00022191,3]
[349719491,1737393047008,-435.13188991,0.00022191,3]
[349719492,1737393047017,-500.0,0.00022191,3]
[349719493,1737393047026,-500.0,0.00022191,3]
[349719494,1737393047037,-500.0,0.00022191,3]
[349719495,1737393047048,-500.0,0.00022191,3]
[349719496,1737393047058,-598.54,0.00022191,3]
[349719497,1737393047068,-500.0,0.00022191,3]
[349719498,1737393047078,-500.0,0.00022191,3]
[349719499,1737393047087,-500.0,0.00022191,3]
[349719500,1737393047097,-500.0,0.00022191,3]
[349719501,1737393047107,-1915.93456567,0.0002221,3]
[349719512,1737393047214,-1915.93456567,0.00022314,3]
[349719514,1737393047224,-822.28,0.00022327,3]
[349719516,1737393047235,-649.86,0.00022327,3]
[349719518,1737393047245,-500.0,0.00022328,3]
[349719520,1737393047254,-500.0,0.00022328,3]
[349719522,1737393047264,-450.9637981,0.00022328,3]
[349719524,1737393047273,-1254.55,0.00022328,3]
[349719526,1737393047283,-244.38515075,0.00022328,3]
[349719528,1737393047293,-500.0,0.00022328,3]
[349719530,1737393047305,-2949.76,0.00022328,3]
[349719532,1737393047317,-657.92,0.00022328,3]
[349719533,1737393047327,-500.0,0.00022328,3]
[349719534,1737393047337,-500.0,0.00022328,3]
[349719535,1737393047347,-621.82,0.00022328,3]
[349719537,1737393047357,-500.0,0.00022328,3]
[349719539,1737393047367,-862.57,0.00022328,3]
[349719541,1737393047377,-182.5108809,0.00022328,3]
[349719543,1737393047389,-47.7291191,0.00022328,3]
[349719545,1737393047399,-500.0,0.00022328,3]
[349719547,1737393047408,-680.5,0.00022328,3]
[349719549,1737393047418,-271.25303485,0.00022328,3]
[349719552,1737393047430,-228.74696515,0.00022328,3]
[349719554,1737393047439,-500.0,0.00022328,3]
[349719556,1737393047449,-500.0,0.00022328,3]
[349719558,1737393047458,-354.43318024,0.00022328,3]
[349719560,1737393047471,-500.0,0.00022328,3]
[349719562,1737393047480,-1915.93456567,0.00022417,3]
[349719564,1737393047490,-137.1000604,0.00022465,3]
[349719566,1737393047502,-1117.4499396,0.00022465,3]
[349719568,1737393047512,-500.0,0.00022465,3]
[349719570,1737393047521,-2949.76,0.00022465,3]
[349719572,1737393047531,-657.92,0.00022465,3]
[349719574,1737393047542,-500.0,0.00022465,3]
[349719577,1737393047552,-500.0,0.00022465,3]
[349719579,1737393047562,-621.82,0.00022465,3]
[349719581,1737393047572,-500.0,0.00022465,3]
[349719583,1737393047581,-862.57,0.00022465,3]
[349719585,1737393047591,-372.74,0.00022465,3]
[349719587,1737393047600,-680.5,0.00022465,3]
[349719589,1737393047610,-500.0,0.00022465,3]
[349719591,1737393047619,-500.0,0.00022465,3]
[349719593,1737393047628,-822.28,0.00022487,3]
[349719595,1737393047638,-649.86,0.00022487,3]
[349719597,1737393047648,-1915.93456567,0.00022521,3]
[349719599,1737393047657,-1254.55,0.00022602,3]
[349719600,1737393047667,-500.0,0.00022602,3]
[349719601,1737393047678,-2949.76,0.00022602,3]
[349719602,1737393047689,-657.92,0.00022602,3]
[349719603,1737393047699,-500.0,0.00022602,3]
[349719604,1737393047708,-500.0,0.00022602,3]
[349719605,1737393047720,-621.82,0.00022602,3]
[349719606,1737393047730,-862.57,0.00022602,3]
[349719607,1737393047739,-680.5,0.00022602,3]
[349719608,1737393047750,-204.00636478,0.00022602,3]
[349719609,1737393047759,-500.0,0.00022602,3]
[349719610,1737393047771,-500.0,0.00022624,2]
[349719611,1737393047781,-1915.93456567,0.00022624,3]
[349719612,1737393047790,-1915.93456567,0.00022728,3]
[349719613,1737393047799,-822.28,0.00022738,3]
[349719614,1737393047808,-822.28,0.00022738,3]
[349719615,1737393047818,-822.28,0.00022738,3]
[349719616,1737393047828,-822.28,0.00022738,3]
[349719617,1737393047838,-822.41,0.00022738,3]
[349719618,1737393047849,-649.86,0.00022738,3]
[349719619,1737393047858,-649.86,0.00022738,3]
[349719620,1737393047867,-649.86,0.00022738,3]
[349719621,1737393047877,-649.86,0.00022738,3]
[349719622,1737393047886,-650.08,0.00022738,3]
[349719623,1737393047895,-1254.55,0.00022739,3]
[349719624,1737393047905,-500.0,0.00022739,3]
[349719625,1737393047914,-2949.76,0.00022739,3]
[349719626,1737393047924,-657.92,0.00022739,3]
[349719627,1737393047934,-500.0,0.00022739,3]
[349719628,1737393047943,-500.0,0.00022739,3]
[349719629,1737393047952,-621.82,0.00022739,3]
[349719630,1737393047961,-862.57,0.00022739,3]
[349719631,1737393047977,-680.5,0.00022739,3]
[349719632,1737393047986,-500.0,0.00022739,3]
[349719633,1737393047996,-1915.93456567,0.00022831,3]
[349719634,1737393048006,-1254.55,0.00022876,3]
[349719635,1737393048015,-500.0,0.00022876,3]
[349719636,1737393048025,-2949.76,0.00022876,3]
[349719637,1737393048035,-657.92,0.00022876,3]
[349719638,1737393048044,-500.0,0.00022876,3]
[349719639,1737393048054,-500.0,0.00022876,3]
[349719640,1737393048063,-621.82,0.00022876,3]
[349719641,1737393048073,-798.01543294,0.00022876,3]
[349719642,1737393048087,-64.55456706,0.00022876,3]
[349719643,1737393048097,-680.5,0.00022876,3]
[349719644,1737393048107,-500.0,0.00022876,3]
[349719645,1737393048118,-1915.93456567,0.00022934,3]
[349719646,1737393048129,-1000.0,0.00023,23]
[349719647,1737393048139,-200.0,0.00023,5]
[349719648,1737393048148,-423.81113032,0.00023012,2]
[349719649,1737393048159,-1254.55,0.00023013,3]
[349719650,1737393048168,-500.0,0.00023013,3]
[349719651,1737393048178,-2949.76,0.00023013,3]